bitfinex/quotes_BTCUSD_20241025
["timestamp","ask_amount","ask_price","bid_price","bid_amount"]
[1729827626683,1.01184515,68112.0,68111.0,1e-06]
[1729827627572,0.54808985,68102.0,68101.0,0.22040187]
[1729827627777,0.8610342,68102.0,68101.0,0.22040187]
[1729827627971,0.8610342,68102.0,68100.0,1.0]
[1729827627972,0.27184,68101.0,68100.0,1.0]
[1729827628183,0.58472521,68101.0,68100.0,1.0]
[1729827628554,0.68747706,68101.0,68100.0,1.0]
[1729827628762,0.93424005,68101.0,68100.0,1.0]
[1729827628965,1.08974386,68101.0,68100.0,1.0]
[1729827629384,0.94128087,68101.0,68100.0,1.0]
[1729827630552,0.79077706,68101.0,68100.0,1.0]
[1729827630762,1.09475711,68101.0,68100.0,1.0]
[1729827630992,1.06529709,68101.0,68100.0,0.45062889]
[1729827631218,0.96254524,68101.0,68100.0,0.45062889]
[1729827631454,1.11304905,68101.0,68100.0,0.45062889]
[1729827632535,0.96554524,68101.0,68100.0,0.45062889]
[1729827632794,1.06829709,68101.0,68100.0,0.45062889]
[1729827633711,1.06529709,68101.0,68100.0,0.45062889]
[1729827633947,0.87435524,68101.0,68100.0,0.45062889]
[1729827634171,0.87935524,68101.0,68100.0,0.45062889]
[1729827634626,0.87535524,68101.0,68100.0,0.45062889]
[1729827634847,0.87435524,68101.0,68100.0,0.45062889]
[1729827635061,0.88235524,68101.0,68100.0,0.45162889]
[1729827635690,1.03285905,68101.0,68100.0,0.45162889]
[1729827635955,1.0674482,68101.0,68100.0,0.45162889]
[1729827636323,0.80715524,68101.0,68100.0,0.45162889]
[1729827637143,0.91694439,68101.0,68100.0,0.45162889]
[1729827637505,0.80715524,68101.0,68100.0,0.45162889]
[1729827638155,0.80715524,68101.0,68100.0,0.45327889]
[1729827638580,0.79666552,68101.0,68100.0,0.45327889]
[1729827638792,0.70385524,68101.0,68100.0,0.45327889]
[1729827639024,0.69547706,68101.0,68100.0,0.45327889]
[1729827639198,0.78328807,68101.0,68100.0,0.45327889]
[1729827639399,0.69547706,68101.0,68100.0,0.45327889]
[1729827641547,0.68747706,68101.0,68100.0,0.45227889]
[1729827641740,0.68847706,68101.0,68100.0,0.45227889]
[1729827642302,0.68816069,68101.0,68100.0,0.45227889]
[1729827642924,0.68516069,68101.0,68100.0,0.45227889]
[1729827643351,0.68616069,68101.0,68100.0,0.45227889]
[1729827647068,0.8366645,68101.0,68100.0,0.45227889]
[1729827647708,0.8386645,68101.0,68100.0,0.45227889]
[1729827647930,0.68616069,68101.0,68100.0,0.45227889]
[1729827648907,0.58340884,68101.0,68100.0,0.45227889]
[1729827649106,0.68616069,68101.0,68100.0,0.45227889]
[1729827649527,0.68620983,68101.0,68100.0,0.45227889]
[1729827650136,0.56045798,68101.0,68100.0,0.45227889]
[1729827650543,0.66320983,68101.0,68100.0,0.45227889]
[1729827650938,0.66220983,68101.0,68100.0,0.45227889]
[1729827651142,0.66303483,68101.0,68100.0,0.45227889]
[1729827651338,0.77282512,68101.0,68100.0,0.45227889]
[1729827651771,0.77482512,68101.0,68100.0,0.45227889]
[1729827653568,0.92532893,68101.0,68100.0,0.45227889]
[1729827653774,0.77482512,68101.0,68100.0,0.45227889]
[1729827654177,0.77282512,68101.0,68100.0,0.45227889]
[1729827654762,0.66303483,68101.0,68100.0,0.45227889]
[1729827654938,0.50092066,68101.0,68100.0,0.45227889]
[1729827655164,0.63911443,68101.0,68100.0,0.45227889]
[1729827655599,0.50092066,68101.0,68100.0,0.45227889]
[1729827660103,0.74432253,68101.0,68100.0,0.45227889]
[1729827660314,0.52592066,68101.0,68100.0,0.45227889]
[1729827660711,0.84907438,68101.0,68100.0,0.45227889]
[1729827660930,0.80367251,68101.0,68100.0,0.45227889]
[1729827661345,0.95417632,68101.0,68100.0,0.45227889]
[1729827661749,0.95217632,68101.0,68100.0,0.45227889]
[1729827661978,0.96068872,68101.0,68100.0,0.45227889]
[1729827662596,0.96324389,68101.0,68100.0,0.45227889]
[1729827662988,0.96524389,68101.0,68100.0,0.45227889]
[1729827663792,0.96324389,68101.0,68100.0,0.45227889]
[1729827664858,1.12565977,68101.0,68100.0,0.45227889]
[1729827665859,1.12765977,68101.0,68100.0,0.45227889]
[1729827666642,1.22084977,68101.0,68100.0,0.30543389]
[1729827667468,1.22084977,68101.0,68100.0,0.28857814]
[1729827667683,0.1,68090.0,68068.0,0.22206387]
[1729827667901,0.41567254,68076.0,68069.0,0.0844]
[1729827668099,0.35164585,68076.0,68070.0,0.005]
[1729827668382,0.248896,68075.0,68070.0,0.005]
[1729827668582,0.40934458,68075.0,68070.0,0.005]
[1729827668778,0.41134458,68075.0,68070.0,0.005]
[1729827669208,0.80525026,68075.0,68070.0,0.005]
[1729827669406,0.80525026,68075.0,68068.0,0.001662]
[1729827669407,0.58484839,68075.0,68068.0,0.001662]
[1729827669620,0.58484839,68075.0,68070.0,0.005]
[1729827671314,0.58473615,68075.0,68070.0,0.005]
[1729827671548,0.67266235,68075.0,68070.0,0.005]
[1729827671756,0.58473615,68075.0,68070.0,0.005]
[1729827672145,0.67266492,68075.0,68070.0,0.005]
[1729827672286,0.67066492,68075.0,68070.0,0.005]
[1729827672499,0.58273615,68075.0,68070.0,0.005]
[1729827672667,0.58473615,68075.0,68070.0,0.005]
[1729827673082,0.67266492,68075.0,68070.0,0.005]
[1729827673284,0.58473615,68075.0,68070.0,0.005]
[1729827673488,0.58273615,68075.0,68070.0,0.005]
[1729827673690,0.80513802,68075.0,68070.0,0.005]
[1729827673904,0.58273615,68075.0,68069.0,0.005]
[1729827674323,0.73323996,68075.0,68069.0,0.005]
[1729827674578,0.57090362,68075.0,68069.0,0.005]
[1729827674758,0.42039981,68075.0,68068.0,0.006662]
[1729827674962,0.58256895,68075.0,68068.0,0.006662]
[1729827675168,0.42039981,68075.0,68070.0,0.005]
[1729827675367,0.48828268,68075.0,68070.0,0.005]
[1729827675606,0.42239981,68075.0,68070.0,0.005]
[1729827675827,0.42339981,68075.0,68070.0,0.005]
[1729827676235,0.48928017,68075.0,68070.0,0.005]
[1729827677665,0.58547363,68075.0,68070.0,0.005]
[1729827678316,0.58347363,68075.0,68070.0,0.005]
[1729827679536,0.67125776,68075.0,68070.0,0.005]
[1729827679969,0.67325776,68075.0,68070.0,0.005]
[1729827680445,0.67125776,68075.0,68070.0,0.005]
[1729827681219,0.58347363,68075.0,68070.0,0.005]
[1729827681422,0.42139981,68075.0,68070.0,0.005]
[1729827681620,0.42339981,68075.0,68070.0,0.005]
[1729827681826,0.58538591,68075.0,68070.0,0.005]
[1729827682028,0.58338591,68075.0,68070.0,0.005]
[1729827682388,0.42139981,68075.0,68070.0,0.005]
[1729827682620,0.58337227,68075.0,68070.0,0.005]
[1729827682820,0.58592824,68075.0,68070.0,0.005]
[1729827683171,0.42595578,68075.0,68070.0,0.005]
[1729827683444,0.58792142,68075.0,68070.0,0.005]
[1729827683640,0.93395982,68075.0,68068.0,0.001662]
[1729827683793,0.84617569,68075.0,68068.0,0.001662]
[1729827684865,0.74342384,68075.0,68068.0,0.001662]
[1729827685076,0.59092003,68075.0,68068.0,0.001662]
[1729827685273,0.69367188,68075.0,68068.0,0.001662]
[1729827685700,0.69567188,68075.0,68068.0,0.001662]
[1729827686570,1.1974256,68075.0,68068.0,0.001662]
[1729827686770,0.355903,68072.0,68068.0,0.001662]
[1729827686979,1.00545732,68072.0,68068.0,0.001662]
[1729827687409,0.87387476,68072.0,68068.0,0.001662]
[1729827688079,0.96206476,68072.0,68068.0,0.001662]
[1729827688743,0.97206476,68072.0,68071.0,0.002662]
[1729827688938,1.07950555,68072.0,68071.0,0.002662]
[1729827689570,0.97206476,68072.0,68071.0,0.002662]
[1729827689770,1.0801975,68072.0,68071.0,0.002662]
[1729827689972,1.0801975,68072.0,68071.0,0.003662]
[1729827690181,1.0861975,68072.0,68071.0,0.003662]
[1729827690384,0.8806938,68072.0,68071.0,0.003662]
[1729827690508,1.23670131,68072.0,68071.0,0.003662]
[1729827692832,1.23470131,68072.0,68071.0,0.003662]
[1729827693081,1.23670131,68072.0,68071.0,0.003662]
[1729827695397,1.23470131,68072.0,68071.0,0.003662]
[1729827695567,1.23670131,68072.0,68071.0,0.003662]
[1729827696847,0.146942,68054.0,68053.0,0.0989]
[1729827697052,0.29744581,68054.0,68053.0,0.0989]
[1729827698338,0.29944581,68054.0,68053.0,0.0989]
[1729827699222,0.29744581,68054.0,68053.0,0.0989]
[1729827707712,0.29744581,68054.0,68053.0,0.1768]
[1729827709417,0.29744581,68054.0,68053.0,0.178452]
[1729827715542,0.3634312,68054.0,68053.0,0.178452]
[1729827715989,0.04399248,68055.0,68053.0,0.178452]
[1729827716212,0.146939,68055.0,68054.0,0.005]
[1729827717102,0.19092555,68058.0,68057.0,0.005]
[1729827717334,0.19092555,68058.0,68057.0,0.27765185]
[1729827717335,0.146933,68058.0,68057.0,0.27765185]
[1729827717772,0.19092584,68058.0,68057.0,0.27765185]
[1729827718016,0.146933,68058.0,68057.0,0.27765185]
[1729827718640,0.19092584,68058.0,68057.0,0.27765185]
[1729827719032,0.1909293,68058.0,68057.0,0.27765185]
[1729827719264,0.146933,68058.0,68057.0,0.27765185]
[1729827720556,0.1909293,68058.0,68057.0,0.27765185]
[1729827721437,0.1909293,68058.0,68057.0,0.1749]
[1729827721664,0.146933,68058.0,68057.0,0.1749]
[1729827721872,0.1909293,68058.0,68057.0,0.1749]
[1729827722092,0.146933,68058.0,68057.0,0.1749]
[1729827722571,0.1909293,68058.0,68057.0,0.1749]
[1729827723220,0.146933,68058.0,68057.0,0.1749]
[1729827723849,0.146933,68058.0,68057.0,0.27765185]
[1729827724525,0.19093762,68058.0,68057.0,0.27765185]
[1729827725659,0.19094252,68058.0,68057.0,0.1749]
[1729827725888,0.146933,68058.0,68057.0,0.1749]
[1729827726088,0.146933,68058.0,68057.0,0.27765185]
[1729827726709,0.07600694,68059.0,68058.0,0.005]
[1729827726921,0.22293794,68059.0,68058.0,0.005]
[1729827727098,0.156931,68059.0,68058.0,0.005]
[1729827727329,0.20094271,68059.0,68058.0,0.005]
[1729827727541,0.156931,68059.0,68058.0,0.005]
[1729827727754,0.20094518,68059.0,68058.0,0.005]
[1729827727952,0.156931,68059.0,68058.0,0.005]
[1729827728104,0.20094527,68059.0,68058.0,0.005]
[1729827728312,0.20094525,68059.0,68058.0,0.005]
[1729827728490,0.20094725,68059.0,68058.0,0.005]
[1729827728691,0.156931,68059.0,68058.0,0.005]
[1729827728896,0.05401637,68059.0,68058.0,0.005]
[1729827729336,0.01,68059.0,68058.0,0.1758]
[1729827729518,0.04401637,68062.0,68060.0,0.151927]
[1729827729723,0.04401637,68062.0,68061.0,0.42547885]
[1729827729916,0.04401637,68062.0,68061.0,0.27855185]
[1729827730117,0.19093537,68065.0,68061.0,0.27855185]
[1729827730327,0.19093537,68065.0,68064.0,0.10275185]
[1729827730535,0.04401637,68065.0,68064.0,0.27855185]
[1729827730990,0.146916,68066.0,68065.0,0.005]
[1729827730991,0.19093237,68066.0,68065.0,0.005]
[1729827731975,0.19093237,68066.0,68064.0,0.27355185]
[1729827731976,0.19090813,68067.0,68066.0,0.005]
[1729827732559,0.146914,68067.0,68066.0,0.005]
[1729827734638,0.04399413,68068.0,68067.0,0.156914]
[1729827734862,0.000826,68071.0,68070.0,0.005]
[1729827734863,0.147731,68071.0,68070.0,0.005]
[1729827735063,0.000826,68071.0,68070.0,0.005]
[1729827736968,0.147731,68071.0,68070.0,0.005]
[1729827740094,0.000826,68071.0,68070.0,0.005]
[1729827740864,0.147731,68071.0,68070.0,0.005]
[1729827742782,0.147731,68071.0,68070.0,0.01]
[1729827756167,0.147731,68071.0,68070.0,0.011652]
[1729827756371,0.000826,68071.0,68070.0,0.011652]
[1729827756582,0.147731,68071.0,68070.0,0.011652]
[1729827758268,0.000826,68071.0,68070.0,0.011652]
[1729827758477,0.147731,68071.0,68070.0,0.011652]
[1729827760642,0.000826,68071.0,68070.0,0.011652]
[1729827761493,0.04480317,68071.0,68070.0,0.011652]
[1729827761920,0.000826,68071.0,68070.0,0.011652]
[1729827762585,0.04480317,68071.0,68070.0,0.011652]
[1729827765279,0.04480317,68071.0,68070.0,0.110352]
[1729827765714,0.000826,68071.0,68070.0,0.333659]
[1729827773938,0.000826,68071.0,68070.0,0.186752]
[1729827774385,0.000826,68071.0,68070.0,0.333659]
[1729827782567,0.000826,68071.0,68070.0,0.348659]
[1729827785182,0.000826,68071.0,68070.0,0.343659]
[1729827785388,0.000826,68071.0,68070.0,0.27131085]
[1729827785801,0.000826,68071.0,68070.0,0.26631085]
[1729827786558,0.000826,68071.0,68070.0,0.163559]
[1729827789158,0.000826,68071.0,68070.0,0.016652]
[1729827789367,0.000826,68071.0,68070.0,0.11940385]
[1729827791595,0.000826,68071.0,68070.0,0.11440385]
[1729827792672,0.000826,68071.0,68070.0,0.11940385]
[1729827795211,0.000826,68071.0,68070.0,0.11440385]
[1729827795446,0.325331,68071.0,68070.0,0.011652]
[1729827795683,0.178426,68071.0,68070.0,0.011652]
[1729827795901,0.325331,68071.0,68070.0,0.011652]
[1729827797190,0.325331,68071.0,68070.0,0.006652]
[1729827797421,0.325331,68071.0,68070.0,0.011652]
[1729827798610,0.178426,68071.0,68070.0,0.011652]
[1729827798848,0.325331,68071.0,68070.0,0.011652]
[1729827799319,0.178426,68071.0,68070.0,0.011652]
[1729827799551,0.325331,68071.0,68070.0,0.011652]
[1729827800309,0.325331,68071.0,68070.0,0.006652]
[1729827800541,0.36933964,68071.0,68070.0,0.006652]
[1729827802739,0.325331,68071.0,68070.0,0.006652]
[1729827806745,0.178426,68071.0,68070.0,0.006652]
[1729827806957,0.325331,68071.0,68070.0,0.006652]
[1729827807791,0.246931,68071.0,68070.0,0.006652]
[1729827808000,0.100026,68071.0,68070.0,0.006652]
[1729827808213,0.246931,68071.0,68070.0,0.006652]
[1729827808856,0.100026,68071.0,68070.0,0.006652]
[1729827809062,0.246931,68071.0,68070.0,0.006652]
[1729827819530,0.100026,68071.0,68070.0,0.006652]
[1729827819738,0.246931,68071.0,68070.0,0.006652]
[1729827820627,0.147731,68071.0,68070.0,0.006652]
[1729827827085,0.29823481,68071.0,68070.0,0.006652]
[1729827827313,0.46036051,68071.0,68070.0,0.006652]
[1729827829828,0.55685478,68071.0,68070.0,0.006652]
[1729827830260,0.55685478,68071.0,68070.0,0.001652]
[1729827831084,0.63835478,68071.0,68070.0,0.001652]
[1729827835307,0.6383757,68071.0,68070.0,0.001652]
[1729827838610,0.47583481,68071.0,68070.0,0.001652]
[1729827842625,0.63840982,68071.0,68070.0,0.001652]
[1729827851471,0.46080982,68071.0,68070.0,0.001652]
[1729827852072,0.48381015,68071.0,68070.0,0.001652]
[1729827855044,0.48376777,68071.0,68070.0,0.001652]
[1729827860042,0.48377843,68071.0,68070.0,0.001652]
[1729827863547,0.48577843,68071.0,68070.0,0.001652]
[1729827864747,0.48377843,68071.0,68070.0,0.001652]
[1729827865101,0.48577843,68071.0,68070.0,0.001652]
[1729827865883,0.48377843,68071.0,68070.0,0.001652]
[1729827866082,0.48577843,68071.0,68070.0,0.001652]
[1729827866966,0.48377843,68071.0,68070.0,0.001652]
[1729827867497,0.48577843,68071.0,68070.0,0.001652]
[1729827867704,0.48377843,68071.0,68070.0,0.001652]
[1729827872457,0.6158771,68071.0,68070.0,0.001652]
[1729827872663,0.48377843,68071.0,68070.0,0.001652]
[1729827873934,0.61598977,68071.0,68070.0,0.001652]
[1729827875568,0.48377843,68071.0,68070.0,0.001652]
[1729827879474,0.48397471,68071.0,68070.0,0.001652]
[1729827889300,0.48397612,68071.0,68070.0,0.001652]
[1729827899163,0.48397558,68071.0,68070.0,0.001652]
[1729827902226,0.48398513,68071.0,68070.0,0.001652]
[1729827906358,0.4609848,68071.0,68070.0,0.001652]
[1729827916644,0.46090736,68071.0,68070.0,0.001652]
[1729827921547,0.62359948,68071.0,68070.0,0.001652]
[1729827921744,0.46092693,68071.0,68070.0,0.001652]
[1729827922451,0.75492693,68071.0,68070.0,0.001652]
[1729827923157,0.85823486,68071.0,68070.0,0.001652]
[1729827923392,0.85567878,68071.0,68070.0,0.001652]
[1729827924091,0.85767878,68071.0,68070.0,0.001652]
[1729827925427,0.75492693,68071.0,68070.0,0.001652]
[1729827926076,0.75475126,68071.0,68070.0,0.001652]
[1729827926297,0.85750311,68071.0,68070.0,0.001652]
[1729827928722,0.85550311,68071.0,68070.0,0.001652]
[1729827930186,0.146931,68059.0,68058.0,0.005]
[1729827930396,0.29743481,68059.0,68058.0,0.005]
[1729827930616,0.45995126,68059.0,68057.0,0.001652]
[1729827930820,0.45995326,68058.0,68057.0,0.006652]
[1729827931487,0.56992938,68058.0,68057.0,0.006652]
[1729827931707,0.45995326,68058.0,68057.0,0.006652]
[1729827931917,0.56992938,68058.0,68057.0,0.006652]
[1729827932127,0.45995326,68058.0,68057.0,0.006652]
[1729827932351,0.5699139,68058.0,68057.0,0.006652]
[1729827932992,0.45995326,68058.0,68057.0,0.006652]
[1729827933226,0.56990978,68058.0,68057.0,0.006652]
[1729827933670,0.45995326,68058.0,68057.0,0.006652]
[1729827934320,0.67266163,68058.0,68057.0,0.001652]
[1729827934534,0.56270511,68058.0,68057.0,0.001652]
[1729827937310,0.67261818,68058.0,68057.0,0.001652]
[1729827939632,0.56986633,68058.0,68057.0,0.001652]
[1729827940485,0.45995326,68058.0,68057.0,0.001652]
[1729827940698,0.45972162,68058.0,68057.0,0.001652]
[1729827946012,0.5476343,68058.0,68057.0,0.001652]
[1729827946476,0.45972162,68058.0,68057.0,0.001652]
[1729827946929,0.54763445,68058.0,68057.0,0.001652]
[1729827947407,0.45972162,68058.0,68057.0,0.001652]
[1729827950630,0.54763543,68058.0,68057.0,0.001652]
[1729827951048,0.45972162,68058.0,68057.0,0.001652]
[1729827953421,0.56962879,68058.0,68057.0,0.001652]
[1729827953839,0.45972162,68058.0,68057.0,0.001652]
[1729827954478,0.56962879,68058.0,68057.0,0.001652]
[1729827959153,0.53710691,68064.0,68057.0,0.001652]
[1729827959154,0.293843,68064.0,68057.0,0.001652]
[1729827959386,0.043984,68061.0,68060.0,0.01]
[1729827959603,0.043984,68063.0,68061.0,0.0929]
[1729827959814,0.01,68062.0,68061.0,0.0929]
[1729827960042,0.053984,68062.0,68061.0,0.0929]
[1729827960279,0.05398409,68062.0,68061.0,0.0929]
[1729827960491,0.20090809,68062.0,68061.0,0.0929]
[1729827961585,0.05398409,68062.0,68061.0,0.0929]
[1729827961812,0.01,68062.0,68061.0,0.0929]
[1729827962029,0.01,68062.0,68061.0,0.0979]
[1729827962464,0.04399253,68062.0,68061.0,0.0979]
[1729827962680,0.04399253,68062.0,68061.0,0.1029]
[1729827963122,0.19091453,68063.0,68062.0,0.005]
[1729827963336,0.06597613,68064.0,68062.0,0.005]
[1729827963337,0.06597393,68064.0,68062.0,0.01]
[1729827964050,0.04398544,68064.0,68062.0,0.11275185]
[1729827964479,0.04398544,68064.0,68062.0,0.01]
[1729827964693,0.38179525,68067.0,68062.0,0.01]
[1729827964694,0.04398544,68065.0,68062.0,0.01]
[1729827964921,0.01,68064.0,68062.0,0.01]
[1729827965142,0.04398544,68065.0,68062.0,0.01]
[1729827965367,0.19090644,68064.0,68062.0,0.01]
[1729827965775,0.146921,68064.0,68062.0,0.01]
[1729827966400,0.04398544,68065.0,68062.0,0.01]
[1729827966603,0.06597393,68066.0,68062.0,0.01]
[1729827966604,0.04398544,68064.0,68062.0,0.01]
[1729827967428,0.04398544,68063.0,68062.0,0.01]
[1729827967632,0.146922,68063.0,68062.0,0.01]
[1729827968038,0.04398544,68064.0,68062.0,0.01]
[1729827968249,0.146922,68063.0,68062.0,0.01]
[1729827968652,0.005,68062.0,68061.0,0.0929]
[1729827969274,0.151924,68062.0,68061.0,0.0929]
[1729827971893,0.151924,68062.0,68061.0,0.093725]
[1729827972095,0.151924,68062.0,68061.0,0.000825]
[1729827972666,0.30242781,68062.0,68061.0,0.000825]
[1729827973057,0.55270564,68062.0,68061.0,0.000825]
[1729827973260,0.46474039,68062.0,68061.0,0.000825]
[1729827975400,0.46674039,68062.0,68061.0,0.000825]
[1729827976058,0.57669695,68062.0,68061.0,0.000825]
[1729827976288,0.8943442,68062.0,68061.0,0.000825]
[1729827976931,0.74384039,68062.0,68061.0,0.000825]
[1729827977589,0.74184039,68062.0,68061.0,0.000825]
[1729827978027,0.74384039,68062.0,68061.0,0.000825]
[1729827980861,0.74484039,68062.0,68061.0,0.000825]
[1729827984152,0.74284039,68062.0,68061.0,0.000825]
[1729827984573,0.74484039,68062.0,68061.0,0.000825]
[1729827984778,0.74284039,68062.0,68061.0,0.000825]
[1729827984986,0.74484039,68062.0,68061.0,0.000825]
[1729827985194,0.74284039,68062.0,68061.0,0.000825]
[1729827985632,0.74484039,68062.0,68061.0,0.000825]
[1729827986502,0.74284039,68062.0,68061.0,0.000825]
[1729827986946,0.74484039,68062.0,68061.0,0.000825]
[1729827987156,0.84751558,68062.0,68061.0,0.000825]
[1729827989535,0.84551558,68062.0,68061.0,0.000825]
[1729827989779,0.99801939,68062.0,68061.0,0.000825]
[1729827990881,0.99801175,68062.0,68061.0,0.000825]
[1729827991093,0.99601175,68062.0,68061.0,0.000825]
[1729827991722,0.83378347,68062.0,68061.0,0.000825]
[1729827991934,0.99600932,68062.0,68061.0,0.000825]
[1729827992181,0.84550551,68062.0,68061.0,0.000825]
[1729827992603,0.84750551,68062.0,68061.0,0.000825]
[1729827996010,0.84550551,68062.0,68061.0,0.000825]
[1729827996444,0.84715551,68062.0,68061.0,0.000825]
[1729827996668,0.84715482,68062.0,68061.0,0.000825]
[1729827999416,0.99765863,68062.0,68061.0,0.000825]
[1729828000868,0.87015482,68062.0,68061.0,0.000825]
[1729828001095,1.07115667,68062.0,68061.0,0.000825]
[1729828001326,0.96840482,68062.0,68061.0,0.000825]
[1729828001767,0.96838234,68062.0,68061.0,0.000825]
[1729828007658,0.97093885,68062.0,68061.0,0.000825]
[1729828007868,0.96838234,68062.0,68061.0,0.000825]
[1729828008749,0.96836554,68062.0,68061.0,0.000825]
[1729828009835,1.11886935,68062.0,68061.0,0.000825]
[1729828010052,0.96836554,68062.0,68061.0,0.000825]
[1729828010298,0.80031554,68062.0,68061.0,0.000825]
[1729828010508,0.70801554,68062.0,68061.0,0.000825]
[1729828011159,0.70803791,68062.0,68061.0,0.000825]
[1729828011638,0.60428606,68062.0,68061.0,0.000825]
[1729828011848,0.70703791,68062.0,68061.0,0.000825]
[1729828012704,0.68403791,68062.0,68061.0,0.000825]
[1729828013126,0.81589883,68062.0,68061.0,0.000825]
[1729828013338,0.80589883,68062.0,68061.0,0.000825]
[1729828013559,0.56628606,68062.0,68061.0,0.000825]
[1729828016010,0.56641385,68062.0,68061.0,0.000825]
[1729828019302,0.56647491,68062.0,68061.0,0.000825]
[1729828019762,0.67646281,68062.0,68061.0,0.000825]
[1729828019980,0.56647491,68062.0,68061.0,0.099125]
[1729828020195,0.67646435,68062.0,68061.0,0.099125]
[1729828020628,0.6764832,68062.0,68061.0,0.099125]
[1729828022776,0.46648986,68062.0,68061.0,0.099125]
[1729828024783,0.30407781,68062.0,68061.0,0.099125]
[1729828025192,0.37005101,68062.0,68061.0,0.099125]
[1729828025407,0.0726232,68062.0,68061.0,0.20187685]
[1729828025624,0.1975519,68062.0,68061.0,0.28447685]
[1729828026054,0.1975519,68062.0,68061.0,0.181725]
[1729828026468,0.153574,68062.0,68061.0,0.181725]
[1729828027559,0.00665,68062.0,68061.0,0.181725]
[1729828027776,0.153574,68062.0,68061.0,0.181725]
[1729828029789,0.00665,68062.0,68061.0,0.181725]
[1729828030046,0.153574,68062.0,68061.0,0.181725]
[1729828033409,0.47276574,68062.0,68061.0,0.000825]
[1729828033844,0.56901198,68062.0,68061.0,0.000825]
[1729828034058,0.65688219,68062.0,68061.0,0.000825]
[1729828037830,0.56901198,68062.0,68061.0,0.000825]
[1729828038481,0.56899476,68062.0,68061.0,0.000825]
[1729828038702,0.65685564,68062.0,68061.0,0.000825]
[1729828040669,0.56899476,68062.0,68061.0,0.000825]
[1729828041529,0.65685564,68062.0,68061.0,0.000825]
[1729828041748,0.56899476,68062.0,68061.0,0.000825]
[1729828042590,0.65685564,68062.0,68061.0,0.000825]
[1729828048309,0.6568792,68062.0,68061.0,0.000825]
[1729828050477,0.56901004,68062.0,68061.0,0.000825]
[1729828052813,0.67884649,68062.0,68061.0,0.000825]
[1729828054591,0.57609464,68062.0,68061.0,0.000825]
[1729828055010,0.46625819,68062.0,68061.0,0.000825]
[1729828055646,0.57609464,68062.0,68061.0,0.000825]
[1729828057575,0.46625819,68062.0,68061.0,0.000825]
[1729828057785,0.30407781,68062.0,68061.0,0.000825]
[1729828058237,0.46641448,68062.0,68061.0,0.000825]
[1729828060863,0.73831448,68062.0,68061.0,0.000825]
[1729828061069,0.74031448,68062.0,68061.0,0.000825]
[1729828062590,0.74031328,68062.0,68061.0,0.000825]
[1729828064727,0.65961328,68062.0,68061.0,0.000825]
[1729828064933,0.56641328,68062.0,68061.0,0.000825]
[1729828066033,0.56841328,68062.0,68061.0,0.000825]
[1729828066245,0.67116513,68062.0,68061.0,0.000825]
[1729828066869,0.80306101,68062.0,68061.0,0.000825]
[1729828067055,0.67116513,68062.0,68061.0,0.000825]
[1729828068300,0.80305464,68062.0,68061.0,0.000825]
[1729828068427,0.67116513,68062.0,68061.0,0.000825]
[1729828068660,0.66916513,68062.0,68061.0,0.000825]
[1729828069061,0.67116513,68062.0,68061.0,0.000825]
[1729828069478,0.80304698,68062.0,68061.0,0.000825]
[1729828069976,0.67116513,68062.0,68061.0,0.000825]
[1729828071107,0.80303724,68062.0,68061.0,0.000825]
[1729828071826,0.8030342,68062.0,68061.0,0.000825]
[1729828071987,0.67116513,68062.0,68061.0,0.000825]
[1729828072187,0.80296015,68062.0,68061.0,0.000825]
[1729828072388,0.67109079,68062.0,68061.0,0.000825]
[1729828072642,0.66909079,68062.0,68061.0,0.000825]
[1729828072794,0.80296384,68062.0,68061.0,0.000825]
[1729828072998,0.80096384,68062.0,68061.0,0.000825]
[1729828073219,0.80296492,68062.0,68061.0,0.000825]
[1729828073405,0.67109079,68062.0,68061.0,0.000825]
[1729828080889,0.50882966,68062.0,68061.0,0.000825]
[1729828081072,0.67116084,68062.0,68061.0,0.000825]
[1729828081934,0.76436084,68062.0,68061.0,0.000825]
[1729828082689,0.60202966,68062.0,68061.0,0.000825]
[1729828082900,0.76435359,68062.0,68061.0,0.000825]
[1729828086002,0.56640174,68062.0,68061.0,0.000825]
[1729828086611,0.66915359,68062.0,68061.0,0.000825]
[1729828086933,0.66914536,68062.0,68061.0,0.000825]
[1729828087288,0.67114536,68062.0,68061.0,0.000825]
[1729828087831,0.66914536,68062.0,68061.0,0.000825]
[1729828089653,0.67114536,68062.0,68061.0,0.000825]
[1729828089852,0.66914536,68062.0,68061.0,0.000825]
[1729828090373,0.67114536,68062.0,68061.0,0.000825]
[1729828090537,0.66914536,68062.0,68061.0,0.000825]
[1729828091142,0.76674536,68062.0,68061.0,0.000825]
[1729828091581,0.76874536,68062.0,68061.0,0.000825]
[1729828092194,0.95724917,68062.0,68061.0,0.000825]
[1729828092399,1.10365209,68062.0,68061.0,0.000825]
[1729828092616,1.03274917,68062.0,68061.0,0.000825]
[1729828092833,0.88224536,68062.0,68061.0,0.000825]
[1729828093245,1.03051045,68062.0,68061.0,0.000825]
[1729828093449,1.11876045,68062.0,68061.0,0.000825]
[1729828094699,1.11676045,68062.0,68061.0,0.000825]
[1729828096447,1.11658006,68062.0,68061.0,0.000825]
[1729828097281,1.12493554,68062.0,68061.0,0.000825]
[1729828102249,1.26114083,68062.0,68061.0,0.000825]
[1729828103009,1.12493554,68062.0,68061.0,0.000825]
[1729828103417,0.9766846,68062.0,68061.0,0.000825]
[1729828104429,0.9716846,68062.0,68061.0,0.000825]
[1729828104692,0.9766846,68062.0,68061.0,0.000825]
[1729828105864,0.9786846,68062.0,68061.0,0.000825]
[1729828106935,0.9766846,68062.0,68061.0,0.000825]
[1729828107631,0.9846846,68062.0,68061.0,0.001825]
[1729828107913,0.9866846,68062.0,68061.0,0.001825]
[1729828108126,1.13492718,68062.0,68061.0,0.001825]
[1729828108538,1.13592718,68062.0,68061.0,0.001825]
[1729828108751,0.82553514,68062.0,68061.0,0.001825]
[1729828109104,0.81753514,68062.0,68061.0,0.000825]
[1729828109302,0.81953514,68062.0,68061.0,0.000825]
[1729828109514,0.82209101,68062.0,68061.0,0.000825]
[1729828109899,0.81953514,68062.0,68061.0,0.000825]